Cogmind - Beta 14 @@@ ROGUE MODE // 2024.09.28 @ 19:16:23 Player: RrQq Result: Destroyed by B-86 Titan with Matter Neutralizer Performance ------------- Evolutions (6) 3000 Regions Visited (20) 4000 Robots Destroyed (386) 1930 Value Destroyed (13587) 13587 Prototype IDs (28) 560 Alien Tech Used (1) 200 Bonus (3328) 3328 TOTAL SCORE: 26605 Bonus ------- High Alert Combat Kills 1605 Follower Combat Kills 1534 Met Data Miner 300 Friendly Fire -111 Cogmind --------- Core Integrity 0/1150 Matter 285/300 Energy 100/100 System Corruption 28% Temperature Cool (10) Movement Flying (40) Location -4/Factory Parts ------- > --- POWER (2) -------- (None) > --- PROPULSION (5) --- Nuclear Pulse Array > --- UTILITY (9) ------ Advanced Hacking Suite System Shield Makeshift System Shield > --- WEAPON (4) ------- (None) > --- INVENTORY (5) ---- High-capacity Matter Pod (200) Improved Signal Interpreter Improved Signal Interpreter Makeshift Transmission Jammer KE Penetrator Peak State ------------ > --- POWER ------------ Reinforced Deuterium Engine Neutrino Core > --- PROPULSION ------- Improved Medium Treads Improved Medium Treads Improved Medium Treads Armored Medium Treads Armored Wheel > --- UTILITY ---------- Improved Coolant Injector Huge Storage Unit Improved Sensor Array Improved Signal Interpreter Makeshift Terrain Scan Processor Improved Target Analyzer Layered Medium Armor Plating System Shield Makeshift System Shield > --- WEAPON ----------- Mini Assault Cannon Magnetic Acceleration Cannon Magnetic Acceleration Cannon Hypervelocity Mass Driver > --- INVENTORY -------- Antimatter Reactor Light Antimatter Reactor Armored Wheel Coolant Injector Huge Storage Unit High-capacity Matter Pod Advanced Sensor Array Improved Signal Interpreter Improved Signal Interpreter Advanced Signal Interpreter Advanced Terrain Scan Processor Makeshift Transmission Jammer Cloaking Device Medium Reflective Plating Improved Thermal Shield Advanced Shield Generator High-powered Tractor Beam HERF Cannon Matter Neutralizer KE Penetrator Railgun Magnetic Acceleration Cannon Mass Driver Enhanced Gauss Cannon CR-A16's Pointy Stick [Rating: 100] Favorites ----------- Power Cooled Ion Engine Engine Cooled Ion Engine Power Core Neutrino Core Reactor Light Antimatter Reactor Propulsion Light Treads Treads Light Treads Leg Improved Titanium Leg Wheel Armored Wheel Hover Unit Antigrav System Flight Unit Nuclear Pulse Array Utility Huge Storage Unit Device Improved Sensor Array Storage Huge Storage Unit Processor Improved Targeting Computer Hackware System Shield Protection Layered Light Armor Plating Weapon Mini Assault Cannon Energy Gun Wave Gun Energy Cannon Beam Cannon Ballistic Gun Heavy Battle Rifle Ballistic Cannon Mini Assault Cannon Launcher Precision Grenade Launcher Special Weapon Mining Laser Impact Weapon Powered Hammer Slashing Weapon Great Axe Piercing Weapon Lance Build | -11 -10 -10 -9 -9 -9 -8 -8 -7 -7 -7 -7 -6 -6 -6 -6 -6 -5 -5 -5 -4 ------- Run | Yrd Mat Min Mat Min Exi Min Mat Fac Low Low Dat Pro Fac Low Low Zio Pro Fac Ext Fac Slots Evolved 12 | . . . 2 . . . 2 2 . . . . 2 . . . . 2 . 2 Power 1 | . . . . . . . . . . . . . . . . . . 1 . . Propulsion 3 | . . . 1 . . . 1 . . . . . . . . . . . . 1 Utility 7 | . . . 1 . . . 1 2 . . . . 1 . . . . 1 . 1 Weapon 1 | . . . . . . . . . . . . . 1 . . . . . . . Parts Attached 351 | 4 9 6 46 11 . . 37 28 21 12 . 13 16 13 8 5 28 37 16 41 Power 27 | . 2 1 3 1 . . 2 . 1 1 . 1 1 . 1 . 2 5 2 4 Engine 16 | . 2 1 3 1 . . 2 . . 1 . . 1 . . . 1 3 1 . Core 10 | . . . . . . . . . 1 . . 1 . . 1 . 1 2 1 3 Reactor 1 | . . . . . . . . . . . . . . . . . . . . 1 Propulsion 95 | 2 . 2 19 3 . . 20 5 5 . . 2 2 1 4 . 9 5 6 10 Treads 56 | 2 . 2 19 3 . . 14 4 1 . . 1 . . 1 . 1 2 3 3 Leg 8 | . . . . . . . 4 1 2 . . . . . . . 1 . . . Wheel 29 | . . . . . . . 2 . 2 . . 1 2 1 3 . 7 3 3 5 Hover 1 | . . . . . . . . . . . . . . . . . . . . 1 Flight 1 | . . . . . . . . . . . . . . . . . . . . 1 Utility 132 | 1 4 1 11 . . . 9 18 11 6 . 5 11 3 . 2 7 20 6 17 Device 77 | 1 . . 2 . . . 1 11 8 3 . 3 7 2 . 2 6 15 4 12 Storage 4 | . 1 . 1 . . . . . . . . . 1 . . . . . . 1 Processor 7 | . . . 2 . . . 1 . . . . . 1 . . . . 1 . 2 Hackware 7 | . . . . . . . 2 . . . . . 1 . . . 1 1 . 2 Protection 37 | . 3 1 6 . . . 5 7 3 3 . 2 1 1 . . . 3 2 . Artifact . | . . . . . . . . . . . . . . . . . . . . . Weapon 97 | 1 3 2 13 7 . . 6 5 4 5 . 5 2 9 3 3 10 7 2 10 Energy Gun 3 | 1 . . 1 . . . . . . . . . . . 1 . . . . . Energy Cannon 2 | . . . 1 . . . . . . . . . . . . . . . . 1 Ballistic Gun 22 | . 1 1 8 . . . . 2 1 . . . . 5 2 . 2 . . . Ballistic Cannon 40 | . 1 . 1 3 . . 6 3 1 4 . 3 2 2 . . 2 4 1 7 Launcher 18 | . 1 . 2 2 . . . . 1 1 . 2 . 2 . 1 3 2 1 . Special Weapon 1 | . . 1 . . . . . . . . . . . . . . . . . . Impact Weapon 8 | . . . . 2 . . . . 1 . . . . . . 2 3 . . . Slashing Weapon 1 | . . . . . . . . . . . . . . . . . . 1 . . Piercing Weapon 2 | . . . . . . . . . . . . . . . . . . . . 2 Special Melee Weapon . | . . . . . . . . . . . . . . . . . . . . . Unidentified Prototypes 9 | . . . 4 . . . 1 1 . . . . . 1 . 2 . . . . Corrupted Parts 5 | . . . . . . . . . . . . . . . . . 5 . . . System Corruption 17 | . . . . . . . . . . . . . . . . . 17 . . . Parts Lost 122 | . 2 3 5 . . . 13 1 7 3 . 8 2 5 6 . 9 15 12 31 Power 15 | . 2 . . . . . 1 . 1 1 . 1 . . 1 . . 2 2 4 Propulsion 44 | . . 2 . . . . 9 . 4 . . 4 . 2 . . 3 4 4 12 Utility 35 | . . 1 4 . . . 1 1 1 2 . 1 1 2 2 . 3 4 3 9 Weapon 28 | . . . 1 . . . 2 . 1 . . 2 1 1 3 . 3 5 3 6 Highest Loss Streak 13 | . 1 2 1 . . . 3 1 3 2 . 3 1 1 3 . 4 9 11 13 To Critical Strikes 1 | . . . . . . . 1 . . . . . . . . . . . . . Average Slot Usage (%) 87 | . 99 99 96 88 88 88 85 98 96 99 100 83 85 86 66 76 72 90 85 87 Engine 5 | . 13 14 11 11 11 11 8 7 . 3 7 1 1 6 1 . . 4 4 4 Core 2 | . . . . . . . . . 6 3 . 5 4 . 4 6 5 3 4 4 Treads 16 | . 28 27 33 33 33 33 25 5 16 7 7 4 . . 3 6 3 2 6 14 Leg 3 | . . . . . . . 7 24 2 7 7 . . . . . 5 . . . Wheel 4 | . . . . . . . . . 7 15 15 8 16 13 5 6 1 16 13 4 Device 8 | . . . 5 . . . 2 11 12 14 15 12 10 15 11 14 12 14 10 10 Storage 8 | . 14 14 15 11 11 11 9 7 7 7 7 7 6 6 6 6 6 5 5 4 Processor 10 | . . . 2 11 11 11 10 15 15 15 15 15 13 12 12 12 12 13 11 9 Hackware 1 | . . . . . . . 6 . . . . . 4 3 . . . 5 10 12 Protection 6 | . 13 13 8 11 11 11 5 10 8 7 7 9 7 5 2 . . 1 5 4 Energy Gun 1 | . 10 . . . . . . . . . . . . . . 6 2 . . . Ballistic Gun 5 | . 13 13 13 . . . . . . . . . . 10 16 13 7 2 . . Ballistic Cannon 7 | . 3 14 3 10 11 11 8 13 6 11 15 11 17 9 . . 4 9 10 14 Launcher 1 | . . . . . . . . . 1 1 . 2 . 2 . . 4 3 . . Impact Weapon 1 | . . . . . . . . . 6 1 . . . . . 4 3 . . . Peak Build Rating 100 | 9 9 9 23 22 22 22 42 53 49 50 50 50 58 61 53 65 72 78 70 100 Average Rating 41 | 6 8 8 18 21 22 22 31 50 45 47 50 41 51 56 43 57 60 68 66 87 On Entrance 38 | 6 9 9 9 21 22 22 22 42 49 45 50 50 38 58 53 47 64 60 63 68 Naked Turns . | . . . . . . . . . . . . . . . . . . . . . Heaviest Build 191 | 14 50 52 141 101 101 101 110 117 107 109 108 110 191 122 120 143 150 135 124 155 Greatest Support 88 | 40 40 40 60 60 60 60 83 88 88 24 24 24 52 52 12 12 51 48 34 60 Greatest Overweight (x) 35 | . 1 1 2 1 1 1 5 5 8 4 4 35 3 9 9 11 12 7 10 32 Average Overweight (x) 3 | . . 1 . 1 1 1 1 1 3 4 4 7 2 3 8 9 7 2 3 9 Largest Inventory Capacity 25 | 8 20 20 25 25 25 25 25 25 25 25 25 25 25 25 25 25 25 25 25 25 Average Capacity 24 | 8 18 20 23 25 25 25 25 25 25 25 25 25 25 25 25 25 25 25 25 24 Most Carried 25 | 6 20 20 25 25 25 25 25 25 25 25 24 25 25 25 25 25 25 25 25 25 Average Carried 23 | 2 12 19 23 24 25 25 24 24 24 24 24 22 21 24 24 24 23 23 23 22 Final Capacity 25 | 8 20 20 25 25 25 25 25 25 25 25 25 25 25 25 25 25 25 25 25 5 Final Carried 25 | 2 20 19 25 25 25 25 25 25 24 24 24 20 25 25 24 25 25 22 24 5 Class Distribution -------------------- 53% | Mutant 21% | Skirmisher 12% | Scavenger-Mutant 3% | Scavenger-Skirmisher Dominant Class ---------------- Mutant | -10/Materials Mutant | -10/Mines Scavenger-Mutant | -9/Materials Mutant | -9/Mines Mutant | -9/Exiles Mutant | -8/Mines Mutant | -8/Materials Mutant | -7/Factory Mutant | -7/Lower Caves Mutant | -7/Lower Caves Mutant | -7/Data Miner Mutant | -6/Proximity Caves Gunner | -6/Factory Skirmisher | -6/Lower Caves Mutant | -6/Lower Caves Skirmisher | -6/Zion Skirmisher | -5/Proximity Caves Scavenger-Assassin | -5/Factory Scavenger-Mutant | -5/Extension Scavenger-Skirmisher | -4/Factory Resources | -11 -10 -10 -9 -9 -9 -8 -8 -7 -7 -7 -7 -6 -6 -6 -6 -6 -5 -5 -5 -4 ----------- Run | Yrd Mat Min Mat Min Exi Min Mat Fac Low Low Dat Pro Fac Low Low Zio Pro Fac Ext Fac Matter Collected 15228 | 250 263 481 1594 286 . 160 1819 1060 785 613 . 557 831 933 399 38 1102 1452 903 1702 Remotely 2188 | . . . . . . . . 277 377 140 . . . 247 104 . . 458 . 585 Salvage Created 12195 | 109 761 317 1909 220 . 51 1308 695 313 379 . 548 449 528 373 . 1500 1136 370 1229 Parts 622 | 3 55 23 137 21 . 12 81 35 3 11 . 20 26 26 16 . 51 38 14 50 Haulers Intercepted 15 | . 2 . 6 . . . 6 . . . . . . . . . . 1 . . Recyclers Shooed 11 | . . . 1 . . . 3 . . . . . . . . . . 4 . 3 Parts Field Recycled . | . . . . . . . . . . . . . . . . . . . . . Retrieved Matter . | . . . . . . . . . . . . . . . . . . . . . Parts Self-Destructed 111 | . . . . . . . . . 2 10 . 20 . 18 16 . 45 . . . Prevented 5 | . . . . . . . . . . . . . . . . . 5 . . . Kills | -11 -10 -10 -9 -9 -9 -8 -8 -7 -7 -7 -7 -6 -6 -6 -6 -6 -5 -5 -5 -4 ------- Run | Yrd Mat Min Mat Min Exi Min Mat Fac Low Low Dat Pro Fac Low Low Zio Pro Fac Ext Fac Combat Hostiles Destroyed 305 | . 14 16 51 11 . 7 38 18 7 11 . 23 7 26 6 . 16 23 6 25 Melee 7 | . . . . . . . . . 1 . . . . . . . . 1 . 5 Guns 54 | . 11 5 20 . . . . . . . . . . 3 6 . 9 . . . Cannons 174 | . . 11 22 7 . 7 37 18 3 6 . 10 7 8 . . 3 13 5 17 AOE 69 | . 2 . 9 4 . . 1 . 3 5 . 13 . 15 . . 4 9 1 3 Classes Destroyed 24 | 2 6 1 5 2 . . 2 1 1 1 . . . . 1 . 1 . . 1 Worker 15 | . 2 . 3 . . . 2 1 . . . . . . . . . 4 . 3 Builder 13 | . 2 . 3 . . . 2 1 . . . . 1 . . . . . 3 1 Tunneler 5 | 1 . 1 1 . . 1 1 . . . . . . . . . . . . . Hauler 15 | . 2 . 6 . . . 6 . . . . . . . . . . 1 . . Recycler 17 | 1 2 . . . . . 4 3 . . . . 1 . . . . 3 1 2 Mechanic 2 | . . . . 1 . . 1 . . . . . . . . . . . . . Operator 3 | . . . 1 . . . 1 . . . . . . . . . . 1 . . Drone 1 | . . . . . . . . . . . . . . . . . 1 . . . Watcher 13 | . 2 . 3 . . . 5 . . . . . 3 . . . . . . . Swarmer 85 | . 9 6 13 7 . 7 9 4 3 2 . 9 . 14 . . . . 2 . Grunt 117 | . 5 8 24 2 . . 17 10 3 6 . 5 2 9 2 . 4 15 1 4 Brawler 13 | . . . 2 1 . . . . . . . 4 1 1 1 . 1 2 . . Duelist 7 | . . . 1 . . . . . . . . 3 1 . . . 1 1 . . Protector 5 | . . . 1 . . . . . . . . . . . . . 4 . . . Sentry 33 | . . . 10 . . . 10 1 . 1 . 2 1 2 . . 1 1 3 1 Demolisher 5 | . . . . 1 . . . . . . . . . . . . 4 . . . Specialist 3 | . . . . . . . . . . . . . . . . . . . . 3 Hunter 8 | . . . . . . . 1 . . . . . 1 . 2 . . 1 . 3 Programmer 23 | . . . . . . . . 3 . 1 . . 1 . 1 . . 3 . 14 Heavy 1 | . . . . . . . 1 . . . . . . . . . . . . . Behemoth 2 | . . . . . . . . . . 1 . . . . . . 1 . . . Decomposer 1 | . . . . . . . . . 1 . . . . . . . . . . . Packrat 1 | . . . . . . . . . 1 . . . . . . . . . . . Samaritan 1 | . . . . . . . . . . . . . . . 1 . . . . . Assembled 2 | . . 2 . . . . . . . . . . . . . . . . . . Mutant 1 | . . . . . . . . . 1 . . . . . . . . . . . Best Kill Streak 13 | 1 5 3 6 5 . 4 7 5 3 4 . 9 3 13 2 . 4 9 4 6 Combat Bots Only 13 | . 4 3 6 4 . 4 6 4 3 4 . 9 3 13 2 . 4 8 2 5 Max Kills in Single Turn 4 | 1 4 2 3 4 . 1 2 2 3 2 . 4 1 3 2 . 1 2 3 3 Gunslinging 1 | . . . . . . . . . . . . . . 1 . . . . . . Exploded 4 | . 2 . 2 3 . . 1 . 3 2 . 4 . 3 . . 1 2 1 3 Melee 1 | . . . . . . . . . 1 . . . . . . . . 1 . 1 Uniques/NPCs Destroyed . | . . . . . . . . . . . . . . . . . . . . . Combat | -11 -10 -10 -9 -9 -9 -8 -8 -7 -7 -7 -7 -6 -6 -6 -6 -6 -5 -5 -5 -4 -------- Run | Yrd Mat Min Mat Min Exi Min Mat Fac Low Low Dat Pro Fac Low Low Zio Pro Fac Ext Fac Hostile Shots Fired 2101 | . 75 64 185 41 . 39 243 154 64 95 . 87 74 99 82 . 68 222 106 403 Missed 616 | . 18 14 44 7 . 14 57 42 8 34 . 30 25 38 23 . 17 57 35 153 Damage Taken 24923 | . 574 582 1795 434 . 203 2895 1644 948 842 . 920 885 841 930 . 1813 3206 1495 4916 Core 4264 | . 104 106 213 21 . 18 249 187 87 56 . 244 152 30 220 . 423 781 209 1164 Absorbed by Shields 558 | . . . . . . . . 24 . . . . . . . . . 36 330 168 Redirected to Shielding 206 | . 64 41 53 19 . 13 16 . . . . . . . . . . . . . Ignored by Resistances 139 | . . . . . . . . . . . . . . . . . . . . 139 Regen/Repaired (Parts) 468 | . . . . . . . 345 . . . . . . . . 123 . . . . Core Remaining (%) 32 | 100 . 16 . . . 37 54 . . . . 18 . . . . 2 . 1 . Volleys Fired 1068 | 10 80 70 163 21 . 20 186 58 31 38 . 34 35 40 23 . 79 91 30 59 Largest 4 | 2 2 2 2 2 . 1 1 2 2 2 . 2 3 4 4 . 4 3 3 4 Hottest 207 | 70 70 100 83 63 . 60 60 96 96 101 . 101 144 144 129 . 190 148 144 207 Shots Fired 1935 | 20 153 108 275 22 . 20 186 109 38 71 . 56 94 104 77 . 208 147 58 189 Gun 676 | 20 142 38 193 . . . . . . . . . . 32 77 . 167 7 . . Cannon 1155 | . 8 59 72 19 . 20 186 109 36 66 . 39 94 57 . . 34 112 55 189 Launcher 93 | . 3 . 10 3 . . . . 2 5 . 17 . 15 . . 7 28 3 . Special 11 | . . 11 . . . . . . . . . . . . . . . . . . Kinetic 1673 | 10 85 97 239 19 . 20 186 109 36 66 . 39 94 89 77 . 149 119 55 184 Thermal 164 | 10 65 11 26 . . . . . . . . . . . . . 52 . . . Explosive 93 | . 3 . 10 3 . . . . 2 5 . 17 . 15 . . 7 28 3 . Electromagnetic 5 | . . . . . . . . . . . . . . . . . . . . 5 Robot Hit Streak 16 | 9 10 7 11 4 . 5 11 14 6 14 . 14 16 5 5 . 16 14 12 7 Robot Miss Streak 5 | 2 4 2 5 2 . 3 3 5 2 3 . 2 4 3 4 . 5 5 2 5 Penetration Max 1 | . . . . . . . 1 . . . . . . . . . . 1 . 1 Secondary Targets 6 | . 2 . 2 . . . . . . . . . . 1 1 . . . . . Max Gunslinging Chain 1 | . 1 . 1 . . . . . . . . . . 1 1 . . . . . Shots Hit Robots 1245 | 16 84 56 157 14 . 13 140 63 27 56 . 33 51 49 40 . 177 107 41 121 Core Hits 657 | 4 47 23 95 11 . 4 54 26 12 16 . 39 22 53 21 . 80 71 23 56 Critical Kills 6 | . . . . . . . . . . . . . . . . . 6 . . . Critical Parts Destroyed 20 | . 2 . 2 . . . . . 1 1 . . . . . . 12 2 . . Critical Strikes 107 | 1 4 1 4 1 . 3 15 5 3 7 . 2 7 2 . . 21 14 3 14 Burn 4 | 1 2 . . . . . . . . . . . . . . . 1 . . . Destroy 21 | . 2 . 2 . . . . . . . . . . . . . 15 2 . . Blast 69 | . . 1 2 1 . 3 15 5 2 6 . 2 7 2 . . 1 11 3 8 Smash 6 | . . . . . . . . . 1 1 . . . . . . 4 . . . Sever 1 | . . . . . . . . . . . . . . . . . . 1 . . Impale 6 | . . . . . . . . . . . . . . . . . . . . 6 Melee Attacks 110 | . . . . . . . . . 5 3 . . . . . 1 29 21 . 51 Impact 41 | . . . . . . . . . 5 3 . . . . . 1 29 3 . . Slashing 18 | . . . . . . . . . . . . . . . . . . 18 . . Piercing 51 | . . . . . . . . . . . . . . . . . . . . 51 Sneak Attacks 14 | . . . . . . . . . 2 . . . . . . . . 7 . 5 Combat Hostiles . | . . . . . . . . . . . . . . . . . . . . . Follow-up Attacks . | . . . . . . . . . . . . . . . . . . . . . Damage Inflicted 48182 | 157 1170 852 4923 1087 . 720 8006 2298 1396 2501 . 2533 1312 2541 747 . 4945 5591 1713 5690 Guns 5579 | 157 871 174 1491 . . . . . . . . . . 326 747 . 1787 26 . . Cannons 26541 | . 35 636 2218 747 . 699 7885 2209 650 1538 . 587 1312 718 . . 713 1835 1132 3627 Explosions 11359 | . 248 . 1147 292 . . 85 79 202 613 . 1943 . 1497 . . 605 2852 581 1215 Melee 4436 | . . . . . . . . . 520 350 . . . . . . 1840 878 . 848 Ramming 267 | . 16 42 67 48 . 21 36 10 24 . . 3 . . . . . . . . Kinetic 30395 | 68 422 810 3388 747 . 699 7885 2209 650 1538 . 587 1312 1044 747 . 1714 1861 1132 3582 Thermal 3042 | 89 546 . 321 . . . 85 . . . . . . . . . 786 . . 1215 Explosive 9854 | . 43 . 1147 292 . . . 79 202 613 . 1943 . 1497 . . 605 2852 581 . Electromagnetic 188 | . 143 . . . . . . . . . . . . . . . . . . 45 Impact 2710 | . . . . . . . . . 520 350 . . . . . . 1840 . . . Slashing 878 | . . . . . . . . . . . . . . . . . . 878 . . Piercing 848 | . . . . . . . . . . . . . . . . . . . . 848 Highest Corruption 28 | . 1 1 . . . . . 4 4 . . . . . 2 2 17 6 6 28 Average Corruption 3 | . 1 1 . . . . . 3 3 . . . . . 1 2 11 5 6 6 Corruption Purged 4 | . . . . . . . . . 4 . . . . . . . . . . . Corruption Blocked . | . . . . . . . . . . . . . . . . . . . . . Effects 193 | . 12 17 . . . . . 21 34 . . . . . 15 2 6 7 20 59 Message Errors 43 | . 3 4 . . . . . 4 7 . . . . . 3 . 1 2 7 12 Matter Fused 44 | . 3 5 . . . . . 5 7 . . . . . 4 . 2 . 4 14 Heat Flow Errors 30 | . 2 3 . . . . . 2 10 . . . . . 2 1 2 1 2 5 Energy Discharges 19 | . 2 2 . . . . . 3 3 . . . . . 1 . 1 2 1 4 Parts Rejected 2 | . . . . . . . . . . . . . . . . . . . . 2 Parts Fused 1 | . . . . . . . . 1 . . . . . . . . . . . . Data Loss (minor) 24 | . 1 3 . . . . . 1 2 . . . . . 2 1 . . 1 13 Data Loss (major) 12 | . . . . . . . . 2 1 . . . . . 3 . . 1 1 4 Misfires 5 | . . . . . . . . 1 2 . . . . . . . . . 2 . Alerts 6 | . 1 . . . . . . 1 . . . . . . . . . . 2 2 Misdirections 2 | . . . . . . . . . . . . . . . . . . . . 2 Weapon Failures 5 | . . . . . . . . 1 2 . . . . . . . . 1 . 1 Overload Shots . | . . . . . . . . . . . . . . . . . . . . . Overflow Damage 3227 | . . 3 141 232 . 158 531 108 376 366 . 32 51 100 . . 332 272 38 487 Projectiles 1409 | . . 3 141 192 . 158 531 108 13 15 . . 51 10 . . . 64 6 117 Explosions 383 | . . . . 40 . . . . . 22 . 32 . 90 . . . 71 32 96 Melee 1435 | . . . . . . . . . 363 329 . . . . . . 332 137 . 274 Knockbacks 167 | . . 4 11 2 . 3 34 16 6 1 . 1 18 5 . . 7 17 4 38 Impact 10 | . . 1 2 1 . . . 1 1 . . . . . . . 4 . . . Kinetic 151 | . . 3 9 1 . 3 32 15 5 1 . 1 18 5 . . 2 16 4 36 Secondary 6 | . . . . . . . 2 . . . . . . . . . 1 1 . 2 Self-Inflicted Damage 392 | . 81 . 53 . . . . 77 . . . 70 . . . . 42 . . 69 Shots 12 | . 3 . 2 . . . . 2 . . . 2 . . . . 2 . . 1 Rammed 35 | . 5 5 9 4 . 1 3 1 6 . . 1 . . . . . . . . Targets Rammed 40 | . 5 6 10 4 . 2 4 1 7 . . 1 . . . . . . . . Kicked . | . . . . . . . . . . . . . . . . . . . . . Crushed 5 | . . 1 1 . . 1 1 . 1 . . . . . . . . . . . Highest Temperature 472 | 80 370 177 248 42 . 20 370 435 472 412 . 11 196 198 197 95 366 249 152 452 Average Temperature 89 | 26 82 35 51 21 . 12 57 102 145 196 . 6 86 82 83 51 130 70 47 141 Received Heat Transfer 5448 | . 108 243 687 54 . . 1008 374 486 132 . 156 57 261 207 . 273 754 336 312 Effects 22 | . 2 . . . . . 2 2 2 4 . . . . . . 3 . . 7 Shutdowns 7 | . . . . . . . 1 1 1 1 . . . . . . . . . 3 Energy Bleed 4 | . 1 . . . . . . 1 . 1 . . . . . . . . . 1 Interference 7 | . . . . . . . . . . 2 . . . . . . 3 . . 2 Matter Decay 2 | . . . . . . . 1 . . . . . . . . . . . . 1 Short Circuit 1 | . 1 . . . . . . . . . . . . . . . . . . . Damage (minor) 1 | . . . . . . . . . 1 . . . . . . . . . . . Siege Activations . | . . . . . . . . . . . . . . . . . . . . . Robots Corrupted 5 | . . . . . . . . . 1 . . . . . . . 4 . . . Combat Hostiles 1 | . . . . . . . . . 1 . . . . . . . . . . . Parts Fried 8 | . . . . . . . . . 3 . . . . . . . 5 . . . Impact Corruptions 28 | . . . . . . . . . 10 10 . . . . . . 8 . . . Robots Melted 1 | . 1 . . . . . . . . . . . . . . . . . . . Combat Hostiles 1 | . 1 . . . . . . . . . . . . . . . . . . . Parts Melted 10 | 2 7 . 1 . . . . . . . . . . . . . . . . . Heat Transferred 4267 | 333 1654 . 666 . . . 50 . . . . . . . . . 1014 . . 550 Parts Sabotaged 2 | . . . . . . . . . . . . 2 . . . . . . . . Parts Stolen . | . . . . . . . . . . . . . . . . . . . . . Parts Stripped . | . . . . . . . . . . . . . . . . . . . . . Power Chain Reactions 2 | . 2 . . . . . . . . . . . . . . . . . . . Alert | -11 -10 -10 -9 -9 -9 -8 -8 -7 -7 -7 -7 -6 -6 -6 -6 -6 -5 -5 -5 -4 ------- Run | Yrd Mat Min Mat Min Exi Min Mat Fac Low Low Dat Pro Fac Low Low Zio Pro Fac Ext Fac Peak Influence 1302 | 10 208 122 1302 667 . 107 379 492 . . . . 313 . . . . 1100 1097 628 Initial 536 | . 6 2 27 505 . . 1 128 . . . . 59 . . . . 25 483 536 Average 306 | 6 59 41 592 307 . 41 167 173 . . . . 199 . . . . 600 749 502 Maximum Alert Level 4 | . 1 . 4 2 . . 1 2 . . . . 1 . . . . 4 3 2 Low Security (%) 48 | 100 94 100 19 35 . 100 62 49 . . . . 49 . . . . 19 . . Level 1 21 | . 5 . 15 34 . . 37 42 . . . . 50 . . . . . . 28 Level 2 18 | . . . 20 30 . . . 8 . . . . . . . . . 51 48 71 Level 3 8 | . . . 30 . . . . . . . . . . . . . . 27 51 . Level 4 2 | . . . 14 . . . . . . . . . . . . . . . . . Level 5 . | . . . . . . . . . . . . . . . . . . . . . High Security . | . . . . . . . . . . . . . . . . . . . . . Max Security . | . . . . . . . . . . . . . . . . . . . . . Sterilizations 1 | . . . 1 . . . . . . . . . . . . . . . . . Squads Dispatched 51 | . 4 . 7 2 . . 6 5 . . . 1 5 . . . . 10 3 8 Investigation 10 | . 3 . 2 1 . . 1 . . . . . 2 . . . . . 1 . Extermination 14 | . . . . . . . . 3 . . . . 2 . . . . 3 . 6 Reinforcement 14 | . 1 . 2 . . . 3 2 . . . . . . . . . 3 1 2 Assault 9 | . . . 3 1 . . . . . . . 1 . . . . . 3 1 . Garrison 4 | . . . . . . . 2 . . . . . 1 . . . . 1 . . Intercept . | . . . . . . . . . . . . . . . . . . . . . Searches Triggered . | . . . . . . . . . . . . . . . . . . . . . Data Miner Redirects 2 | . . . . . . . . . . . . . 1 . . . . 1 . . Construction Impeded 3 | . . . . . . . . 1 . . . . . . . . . 1 1 . Haulers Reinforced 2 | . . . . . . . . 1 . . . . . . . . . 1 . . Active Scanning Responses . | . . . . . . . . . . . . . . . . . . . . . Cargo Convoy Interrupts 1 | . . . . . . . . . . . . . . . . . . . . 1 Stealth | -11 -10 -10 -9 -9 -9 -8 -8 -7 -7 -7 -7 -6 -6 -6 -6 -6 -5 -5 -5 -4 --------- Run | Yrd Mat Min Mat Min Exi Min Mat Fac Low Low Dat Pro Fac Low Low Zio Pro Fac Ext Fac Distress Signals 46 | . . . 2 . . . 3 . . 1 . . . . . . 38 . 2 . Communications Jammed . | . . . . . . . . . . . . . . . . . . . . . Distress Signals . | . . . . . . . . . . . . . . . . . . . . . Times Spotted 461 | . 32 16 83 14 . 7 51 21 7 12 . 21 22 22 6 . 30 40 28 49 Peak Tracking Total 11 | . 5 3 8 4 . 4 6 4 3 3 . 5 4 7 3 . 4 11 9 9 Tactical Retreats 34 | . 1 1 6 2 . . 5 3 . 2 . 1 2 . . . 2 2 4 3 Traps | -11 -10 -10 -9 -9 -9 -8 -8 -7 -7 -7 -7 -6 -6 -6 -6 -6 -5 -5 -5 -4 ------- Run | Yrd Mat Min Mat Min Exi Min Mat Fac Low Low Dat Pro Fac Low Low Zio Pro Fac Ext Fac Traps Triggered 9 | . 1 . . . . . 2 3 . . . . . . . . . . 3 . Indirectly . | . . . . . . . . . . . . . . . . . . . . . Trap Hack Attempts . | . . . . . . . . . . . . . . . . . . . . . Triggered . | . . . . . . . . . . . . . . . . . . . . . Disarmed . | . . . . . . . . . . . . . . . . . . . . . Reprogrammed . | . . . . . . . . . . . . . . . . . . . . . Reused . | . . . . . . . . . . . . . . . . . . . . . Traps Extracted . | . . . . . . . . . . . . . . . . . . . . . Installed . | . . . . . . . . . . . . . . . . . . . . . Triggered 6 | . . . . . . . . . 2 3 . 1 . . . . . . . . Machines | -11 -10 -10 -9 -9 -9 -8 -8 -7 -7 -7 -7 -6 -6 -6 -6 -6 -5 -5 -5 -4 ---------- Run | Yrd Mat Min Mat Min Exi Min Mat Fac Low Low Dat Pro Fac Low Low Zio Pro Fac Ext Fac Machines Disabled 45 | . 1 . 3 . . 1 6 8 1 . . 2 3 3 . . 2 8 1 6 Max in Single Turn 5 | . 1 . 1 . . 1 1 4 1 . . 1 1 1 . . 1 . 1 5 Garrison Access 4 | . . . . . . . 1 1 . . . . 1 . . . . 1 . . Machines Repaired . | . . . . . . . . . . . . . . . . . . . . . Machines Dismantled . | . . . . . . . . . . . . . . . . . . . . . Machines Sabotaged . | . . . . . . . . . . . . . . . . . . . . . Overloaded Fab Kills . | . . . . . . . . . . . . . . . . . . . . . Hacking | -11 -10 -10 -9 -9 -9 -8 -8 -7 -7 -7 -7 -6 -6 -6 -6 -6 -5 -5 -5 -4 --------- Run | Yrd Mat Min Mat Min Exi Min Mat Fac Low Low Dat Pro Fac Low Low Zio Pro Fac Ext Fac Machines Accessed 58 | . 10 . 11 1 1 . 11 3 . 1 4 . 6 1 . . . 3 3 3 Terminals 37 | . 7 . 9 . . . 9 2 . 1 . . 4 1 . . . 1 3 . Fabricators 2 | . . . . . . . . . . . . . 1 . . . . . . 1 Repair Stations 3 | . 1 . . . . . 1 . . . . . . . . . . 1 . . Recycling Units 4 | . 2 . 2 . . . . . . . . . . . . . . . . . Scanalyzers . | . . . . . . . . . . . . . . . . . . . . . Garrison Access 6 | . . . . . . . 1 1 . . . . 1 . . . . 1 . 2 Total Hacks 157 | . 23 . 29 1 1 . 33 6 . 1 24 . 14 4 . . . 8 7 6 Successful 90 | . 14 . 13 1 1 . 20 5 . 1 24 . 2 4 . . . 1 3 1 Failed 66 | . 8 . 16 . . . 13 1 . . . . 12 . . . . 7 4 5 Catastrophic 7 | . . . . . . . 3 . . . . . 3 . . . . . . 1 Database Lockouts 1 | . 1 . . . . . . . . . . . . . . . . . . . Manual 70 | . 12 . 29 . . . 19 3 . . . . 5 . . 1 . . 1 . Terminals 99 | . 18 . 26 . . . 25 5 . 1 . . 9 4 . . . 4 7 . Fabricators 4 | . . . . . . . . . . . . . 2 . . . . . . 2 Repair Stations 10 | . 2 . . . . . 7 . . . . . . . . . . 1 . . Recycling Units 6 | . 3 . 3 . . . . . . . . . . . . . . . . . Scanalyzers . | . . . . . . . . . . . . . . . . . . . . . Garrison Access 12 | . . . . . . . 1 1 . . . . 3 . . . . 3 . 4 Terminal Hacks 59 | . 7 . 4 1 1 . 9 4 . 1 24 . 1 4 . . . . 3 . Record 12 | . . . . . 1 . . . . 1 6 . . 4 . . . . . . Part Schematic 11 | . . . . . . . . . . . 10 . . . . . . . 1 . Robot Schematic 5 | . . . . . . . . . . . 5 . . . . . . . . . Robot Analysis 9 | . 2 . 3 . . . 1 2 . . . . 1 . . . . . . . Prototype ID Bank 7 | . . . 1 . . . 2 1 . . 3 . . . . . . . . . Open Door 2 | . . . . 1 . . . . . . . . . . . . . . 1 . Branch Access Points 1 | . . . . . . . . 1 . . . . . . . . . . . . Emergency Access Points 1 | . 1 . . . . . . . . . . . . . . . . . . . Alert Level 4 | . 1 . . . . . 2 . . . . . . . . . . . 1 . Unreport Threat 5 | . 1 . . . . . 4 . . . . . . . . . . . . . Hauler Manifests 1 | . 1 . . . . . . . . . . . . . . . . . . . Registered Components 1 | . 1 . . . . . . . . . . . . . . . . . . . Fabricator Hacks 1 | . . . . . . . . . . . . . . . . . . . . 1 Load Schematic 1 | . . . . . . . . . . . . . . . . . . . . 1 Repair Station Hacks 7 | . 1 . . . . . 6 . . . . . . . . . . . . . Scan Component 4 | . 1 . . . . . 3 . . . . . . . . . . . . . Repair 3 | . . . . . . . 3 . . . . . . . . . . . . . Recycling Unit Hacks . | . . . . . . . . . . . . . . . . . . . . . Scanalyzer . | . . . . . . . . . . . . . . . . . . . . . Garrison Access Hacks 4 | . . . . . . . 1 1 . . . . 1 . . . . 1 . . Seal Access 4 | . . . . . . . 1 1 . . . . 1 . . . . 1 . . Unauthorized Hacks 19 | . 6 . 9 . . . 4 . . . . . . . . . . . . . Terminals 15 | . 4 . 7 . . . 4 . . . . . . . . . . . . . Botnet 15 | . 4 . 7 . . . 4 . . . . . . . . . . . . . Fabricators . | . . . . . . . . . . . . . . . . . . . . . Repair Stations . | . . . . . . . . . . . . . . . . . . . . . Recycling Units 4 | . 2 . 2 . . . . . . . . . . . . . . . . . Tunnel 4 | . 2 . 2 . . . . . . . . . . . . . . . . . Scanalyzers . | . . . . . . . . . . . . . . . . . . . . . Garrison Access . | . . . . . . . . . . . . . . . . . . . . . Data Cores Recovered 1 | . . . . . . . . . . . . . . . . . . 1 . . Used 1 | . . . . . . . . . . . . . . . . . . 1 . . Hacking Detections 37 | . 6 . 9 . . . 8 1 . . . . 6 1 . . . 3 1 2 Full Trace Events 4 | . . . . . . . 1 . . . . . 2 1 . . . . . . Feedback Events 1 | . . . . . . . . . . . . . . 1 . . . . . . Hackware Fried 1 | . . . . . . . . . . . . . . 1 . . . . . . Feedback Blocked . | . . . . . . . . . . . . . . . . . . . . . Robot Schematics Acquired 8 | . . . . . . . . . . . 5 . . . . 3 . . . . Robots Built . | . . . . . . . . . . . . . . . . . . . . . Authchips . | . . . . . . . . . . . . . . . . . . . . . Time . | . . . . . . . . . . . . . . . . . . . . . Total Robot Build Rating . | . . . . . . . . . . . . . . . . . . . . . Part Schematics Acquired 25 | . . . . . . . . . . . 10 . . . . 14 . . 1 . Parts Built . | . . . . . . . . . . . . . . . . . . . . . Authchips . | . . . . . . . . . . . . . . . . . . . . . Time . | . . . . . . . . . . . . . . . . . . . . . Total Part Build Rating . | . . . . . . . . . . . . . . . . . . . . . Parts Repaired 3 | . . . . . . . 3 . . . . . . . . . . . . . Time 90 | . . . . . . . 90 . . . . . . . . . . . . . Parts Recycled . | . . . . . . . . . . . . . . . . . . . . . Recycled Matter . | . . . . . . . . . . . . . . . . . . . . . Retrieved Matter . | . . . . . . . . . . . . . . . . . . . . . Retrieved Components . | . . . . . . . . . . . . . . . . . . . . . Parts Scanalyzed . | . . . . . . . . . . . . . . . . . . . . . Part Schematics Acquired . | . . . . . . . . . . . . . . . . . . . . . Parts Damaged . | . . . . . . . . . . . . . . . . . . . . . Bothacking | -11 -10 -10 -9 -9 -9 -8 -8 -7 -7 -7 -7 -6 -6 -6 -6 -6 -5 -5 -5 -4 ------------ Run | Yrd Mat Min Mat Min Exi Min Mat Fac Low Low Dat Pro Fac Low Low Zio Pro Fac Ext Fac Used RIF Installer . | . . . . . . . . . . . . . . . . . . . . . Robots Hacked . | . . . . . . . . . . . . . . . . . . . . . Non-combat . | . . . . . . . . . . . . . . . . . . . . . Combat . | . . . . . . . . . . . . . . . . . . . . . Robot Hacks Applied . | . . . . . . . . . . . . . . . . . . . . . Relay Couplers Released . | . . . . . . . . . . . . . . . . . . . . . Fabnet Peak Effective % . | . . . . . . . . . . . . . . . . . . . . . Robots Rewired 10 | . . . . . . . . . . . . . . . . . 2 . 8 . Allies Hacked 2 | . . . . . . . . . . . . . . . . . . . . 2 Hacks Repelled 1 | . . . . . . . . . . . . . . . . . . . . 1 Allies | -11 -10 -10 -9 -9 -9 -8 -8 -7 -7 -7 -7 -6 -6 -6 -6 -6 -5 -5 -5 -4 -------- Run | Yrd Mat Min Mat Min Exi Min Mat Fac Low Low Dat Pro Fac Low Low Zio Pro Fac Ext Fac Total Allies 22 | . . . . 1 . . . . . . . 1 . . . 5 2 . 13 . Largest Group 11 | . . . . 1 . . . . . . . 1 1 . . 5 5 2 11 4 Highest-Rated Group 443 | . . . . 31 . . . . . . . 96 96 . . 127 127 98 443 246 Highest-Rated Ally 159 | . . . . 31 . . . . . . . 96 96 . . 31 49 49 159 159 Total Orders 1 | . . . . . . . . . . . . . . . . . 1 . . . EXPLORE 1 | . . . . . . . . . . . . . . . . . 1 . . . Ally Attacks 249 | . . . . 11 . . . . . . . 2 19 . . . 52 14 125 26 Total Damage 7264 | . . . . 192 . . . . . . . 90 1190 . . . 749 1431 3284 328 Kills 53 | . . . . 1 . . . . . . . 1 7 . . . 6 11 24 3 Allies Corrupted . | . . . . . . . . . . . . . . . . . . . . . Allies Melted . | . . . . . . . . . . . . . . . . . . . . . Intel | -11 -10 -10 -9 -9 -9 -8 -8 -7 -7 -7 -7 -6 -6 -6 -6 -6 -5 -5 -5 -4 ------- Run | Yrd Mat Min Mat Min Exi Min Mat Fac Low Low Dat Pro Fac Low Low Zio Pro Fac Ext Fac Robot Analysis Total 9 | . 2 . 3 . . . 1 2 . . . . 1 . . . . . . . Derelict Logs Recovered 17 | . . 1 . 1 . . . . 3 3 . 2 . 1 2 2 2 . . . Drone Launches 2 | . . . . . . . . . . . . . . . . . 2 . . . Drone Recoveries 1 | . . . . . . . . . . . . . . . . . 1 . . . Exploration | -11 -10 -10 -9 -9 -9 -8 -8 -7 -7 -7 -7 -6 -6 -6 -6 -6 -5 -5 -5 -4 ------------- Run | Yrd Mat Min Mat Min Exi Min Mat Fac Low Low Dat Pro Fac Low Low Zio Pro Fac Ext Fac Turns Passed 46036 | 91 2534 1788 5226 2659 430 1733 5165 1988 2303 1732 120 2162 992 1441 1991 2896 6251 1381 659 2494 Spaces Moved 17444 | 36 977 643 1957 661 180 700 1544 860 1034 1021 81 1037 667 880 873 1177 1267 716 299 834 Core 78 | . . . . . . . . . . . . 2 . . . . . . . 76 Treads 7165 | 36 977 643 1957 661 180 700 1344 121 385 . . . . . . . 155 4 . 2 Legs 1501 | . . . . . . . 83 739 . . . . . . . . 679 . . . Wheels 8641 | . . . . . . . 117 . 649 1021 81 1035 667 880 873 1177 433 712 299 697 Hover . | . . . . . . . . . . . . . . . . . . . . . Flight 59 | . . . . . . . . . . . . . . . . . . . . 59 Fastest Speed 40 | 160 160 240 160 240 240 240 125 197 150 150 150 150 123 123 210 210 120 113 128 40 Average Speed 223 | 160 229 240 232 240 240 240 235 201 185 150 150 197 124 145 216 236 459 129 143 225 Slowest Speed 1800 | 160 240 240 320 240 240 240 560 545 465 150 150 1800 138 225 225 255 620 410 240 1650 Overloaded Moves . | . . . . . . . . . . . . . . . . . . . . . Propulsion Burnouts . | . . . . . . . . . . . . . . . . . . . . . Robots Hopped . | . . . . . . . . . . . . . . . . . . . . . Cave-ins Triggered 2 | . . . . . . . . . . . . . . . . . . . . 2 Exploration Rate (%) 71 | 4 99 99 100 100 54 101 99 19 93 97 70 93 25 78 93 83 97 22 45 23 Regions Visited 20 Branch Regions 13 Pre-discovered Areas 9 | . 2 . 2 . 1 . . . 1 . 1 . . . 1 . 1 . . . Known Exits Taken 13 | . . . . . . . 1 1 1 1 1 1 1 1 1 1 1 1 1 . Unknown Exits Taken 7 | 1 1 1 1 1 1 1 . . . . . . . . . . . . . . Scrap Searched 37 | . . 2 . 3 . 2 . . 13 3 . 1 . 5 2 1 5 . . . Spaces Dug 76 | . 3 . . . . . . 32 10 . . . . 2 . . . 4 . 25 Terrain Destroyed 951 | . 20 1 65 31 . 9 64 65 31 62 . 120 20 61 5 . 37 220 15 125 Melee 29 | . . . . . . . . . . . . . . . . . . 4 . 25 Projectile 260 | . . 1 11 10 . 9 54 29 6 4 . 13 20 20 5 . 1 22 8 47 AOE 662 | . 20 . 54 21 . . 10 36 25 58 . 107 . 41 . . 36 194 7 53 Terrain Rammed . | . . . . . . . . . . . . . . . . . . . . . Walls Destroyed . | . . . . . . . . . . . . . . . . . . . . . Machines Disabled . | . . . . . . . . . . . . . . . . . . . . . Actions | -11 -10 -10 -9 -9 -9 -8 -8 -7 -7 -7 -7 -6 -6 -6 -6 -6 -5 -5 -5 -4 --------- Run | Yrd Mat Min Mat Min Exi Min Mat Fac Low Low Dat Pro Fac Low Low Zio Pro Fac Ext Fac Total 22447 | 53 1125 758 2345 1702 179 721 2800 1000 1355 1142 80 1091 753 953 922 1288 1493 985 473 1229 Wait 3000 | . 25 31 101 984 . . 977 28 245 63 . 5 15 7 14 100 47 89 54 215 Move 17424 | 35 976 642 1956 660 179 699 1543 859 1033 1020 80 1036 666 879 872 1176 1266 715 298 834 Hop . | . . . . . . . . . . . . . . . . . . . . . Pick Up 174 | . 23 2 27 9 . . 24 6 8 4 . 2 11 6 2 3 14 14 7 12 Fast Attach 101 | 1 1 . 4 3 . . 17 8 4 . . 1 4 6 5 3 11 12 6 15 Attach 108 | 2 3 3 7 5 . . 11 5 5 3 . 6 7 4 3 . 9 13 4 18 Detach 18 | . . . . 1 . . 2 . . . . . 4 . . . 1 4 . 6 Swap 143 | 1 5 3 35 3 . . 9 15 12 9 . 6 5 4 . 2 8 12 6 8 Drop 172 | 4 7 1 42 12 . . 27 15 5 2 . . 6 7 3 3 11 14 2 11 Fire 1068 | 10 80 70 163 21 . 20 186 58 31 38 . 34 35 40 23 . 79 91 30 59 Melee 110 | . . . . . . . . . 5 3 . . . . . 1 29 21 . 51 Ram 1 | . . . . . . . . . . . . 1 . . . . . . . . Kick . | . . . . . . . . . . . . . . . . . . . . . Crush 39 | . 5 6 10 4 . 2 4 1 7 . . . . . . . . . . . Escape Stasis 29 | . . . . . . . . 5 . . . . . . . . . . 24 . Rewire 60 | . . . . . . . . . . . . . . . . . 18 . 42 . Trap . | . . . . . . . . . . . . . . . . . . . . . Miscellaneous . | . . . . . . . . . . . . . . . . . . . . . Route ------- -11/Scrapyard -10/Materials (discovered 4 exits: *Mat x3 / [*Min]) -10/Mines (discovered 2 exits: *Mat x2) -9/Materials (discovered 5 exits: *Mat x3 / *Min x2) -9/Mines (discovered 3 exits: *Mat x2 / *Exi) -9/Exiles -8/Mines (discovered 2 exits: *Mat x2) -8/Materials (discovered 5 exits: *Fac x3 / [*Sto x2]) -7/Factory (discovered 4 exits: *Fac x2 / *Low x2) -7/Lower Caves (discovered 2 exits: *Low / *Dat) -7/Lower Caves (discovered 2 exits: *Fac / *Dat) -7/Data Miner -6/Proximity Caves -6/Factory (discovered 3 exits: *Fac x2 / *Low) -6/Lower Caves -6/Lower Caves (discovered 2 exits: *Fac / *Zio) -6/Zion -5/Proximity Caves -5/Factory (discovered 3 exits: *Fac x2 / *Ext) -5/Extension -4/Factory (discovered 1 exit: [*Upp]) History --------- Turn | Location | Event 10 | -11/Scrapyard | Discovered new exit (range 3) 92 | -11/Scrapyard | Entered Materials 305 | -10/Materials | Build established: Mutant 507 | -10/Materials | Discovered new exit (range 8) 859 | -10/Materials | Discovered new exit (range 9) 1298 | -10/Materials | Central database locked down 1316 | -10/Materials | Discovered new exit (range 15) 1724 | -10/Materials | Discovered new exit (range 4) 2626 | -10/Materials | Entered Mines 2717 | -10/Mines | Core integrity fell below 50% 2853 | -10/Mines | Found a hidden stash of uninstalled traps 2925 | -10/Mines | Discovered new exit (range 9) 3122 | -10/Mines | Excavation squad dispatched 3122 | -10/Mines | A large section of the Mines collapsed 3517 | -10/Mines | Core integrity fell below 20% 4161 | -10/Mines | Learned Materials trap positions 4192 | -10/Mines | Discovered new exit (range 10) 4414 | -10/Mines | Entered Materials 4414 | -9/Materials | Evolved 2 slots: Propulsion x1, Utility x1 4415 | -9/Materials | Loaded intel: 26 trap records 4702 | -9/Materials | Build established: Scavenger-Mutant 4933 | -9/Materials | Discovered new exit (range 10) 5585 | -9/Materials | Discovered new exit (range 12) 6661 | -9/Materials | Discovered new exit (range 3) 7214 | -9/Materials | First assault squad dispatched 8028 | -9/Materials | Discovered new exit (range 11) 8175 | -9/Materials | Discovered new exit (range 16) 8619 | -9/Materials | Build established: Mutant 9291 | -9/Materials | Core integrity fell below 50% 9385 | -9/Materials | Sterilization system engaged 9385 | -9/Materials | Non-combat units ordered to evacuate 9485 | -9/Materials | Combat units ordered to evacuate 9640 | -9/Materials | Entered Mines 10077 | -9/Mines | Assembled infested the area 10134 | -9/Mines | Received a Rocket Launcher from a helpful Derelict 11257 | -9/Mines | Discovered new exit (range 15) 11371 | -9/Mines | Learned Materials stockpile data 11595 | -9/Mines | Met a Derelict shopkeep closing up shop 11874 | -9/Mines | Met a Derelict testing a Signal Generator 12030 | -9/Mines | Discovered new exit (range 9) 12289 | -9/Mines | Deemed a non-threat by the Exiles lab entrance 12289 | -9/Mines | Discovered new exit (range 5) 12299 | -9/Mines | Entered Exiles 12362 | -9/Exiles | Met 8R-AWN 12400 | -9/Exiles | Met EX-HEX 12513 | -9/Exiles | Met EX-DEC 12602 | -9/Exiles | Learned location of Zion (-6) 12700 | -9/Exiles | Discovered new exit (range 14) 12729 | -9/Exiles | Entered Mines 13311 | -8/Mines | Discovered new exit (range 8) 14116 | -8/Mines | Discovered new exit (range 10) 14462 | -8/Mines | Entered Materials 14462 | -8/Materials | Evolved 2 slots: Propulsion x1, Utility x1 15169 | -8/Materials | Discovered new exit (range 5) 15398 | -8/Materials | Garrison activated, responded to threat 15677 | -8/Materials | Garrison activated, responded to threat 15818 | -8/Materials | Discovered new exit (range 8) 15868 | -8/Materials | Discovered new exit (range 15) 16035 | -8/Materials | Repaired Hvy. Assault Cannon 16063 | -8/Materials | Repaired Lgt. Treads 16090 | -8/Materials | Repaired Lgt. Treads 16467 | -8/Materials | Discovered new exit (range 5) 17937 | -8/Materials | Discovered new exit (range 15) 18257 | -8/Materials | Lost 3 parts (2n1w) 18777 | -8/Materials | Identified exit to Factory 19627 | -8/Materials | Entered Factory 19627 | -7/Factory | Evolved 2 slots: Utility x2 20155 | -7/Factory | Discovered new exit (range 12) 20167 | -7/Factory | Identified exit to Lower Caves 20235 | -7/Factory | Identified exit to Factory 20660 | -7/Factory | Discovered exit to Factory (range 6) 21615 | -7/Factory | Entered Lower Caves 21835 | -7/Lower Caves | Lost 3 parts (1p1n1w) 22565 | -7/Lower Caves | Learned Factory stockpile data 22596 | -7/Lower Caves | Attacked by a delusional Derelict stockpiling parts 23228 | -7/Lower Caves | Identified exit to Lower Caves 23548 | -7/Lower Caves | A Derelict revealed a hidden shortcut to meet someone special 23572 | -7/Lower Caves | Identified exit to Data Miner 23918 | -7/Lower Caves | Entered another Lower Caves area 23921 | -7/Lower Caves | Encountered a Warlord checkpoint 24039 | -7/Lower Caves | Discovered exit to Factory (range 8) 24303 | -7/Lower Caves | Spotted B-75 Beast 24383 | -7/Lower Caves | Destroyed B-75 Beast 24663 | -7/Lower Caves | Learned location of 1 exit from Factory 24746 | -7/Lower Caves | Attracted the attention of an 0b10 checkpoint 24797 | -7/Lower Caves | Learned Factory garrison access intel 25480 | -7/Lower Caves | Learned Factory terminal intel 25548 | -7/Lower Caves | Discovered exit to Data Miner (range 10) 25650 | -7/Lower Caves | Entered Data Miner 25650 | -7/Data Miner | Discovered new exit (range 6) 25679 | -7/Data Miner | Met Data Miner 25709 | -7/Data Miner | Learned location of Section 7 (-2) 25734 | -7/Data Miner | Received God Mode back door access code from Data Miner 25767 | -7/Data Miner | Identified exit to Proximity Caves 25770 | -7/Data Miner | Entered Proximity Caves 25830 | -6/Proximity Caves | Attracted the attention of an 0b10 checkpoint 25943 | -6/Proximity Caves | Core integrity fell below 50% 25985 | -6/Proximity Caves | Learned Factory security intel 26025 | -6/Proximity Caves | Learned Factory stockpile data 27141 | -6/Proximity Caves | Attracted the attention of an 0b10 outpost 27179 | -6/Proximity Caves | Destroyed 9 combat bots 27186 | -6/Proximity Caves | Lost 3 parts (2n1w) 27196 | -6/Proximity Caves | Escorted by Enhanced Grunt 27208 | -6/Proximity Caves | Core integrity fell below 20% 27675 | -6/Proximity Caves | Discovered exit to Factory (range 8) 27932 | -6/Proximity Caves | Entered Factory 27932 | -6/Factory | Accompanied by 1 ally 27932 | -6/Factory | Evolved 2 slots: Utility x1, Weapon x1 27933 | -6/Factory | Identified exit to Factory 27936 | -6/Factory | Loaded intel: 26 terminal locations 27937 | -6/Factory | Loaded intel: 4 garrison access locations 28410 | -6/Factory | Incoming investigation squad redirected 28411 | -6/Factory | Garrison activated, responded to threat 28818 | -6/Factory | Discovered exit to Factory (range 11) 28835 | -6/Factory | Discovered new exit (range 15) 28857 | -6/Factory | Identified exit to Lower Caves 28924 | -6/Factory | Entered Lower Caves 28925 | -6/Lower Caves | Build established: Skirmisher 29019 | -6/Lower Caves | Learned Factory trap positions 29240 | -6/Lower Caves | Attracted the attention of an 0b10 checkpoint 29461 | -6/Lower Caves | Found Alien Artifact 29461 | -6/Lower Caves | Identified Core Expander 29461 | -6/Lower Caves | Installed Core Expander, added new Weapon slot 29569 | -6/Lower Caves | Attracted the attention of an 0b10 base 29625 | -6/Lower Caves | Destroyed 13 combat bots 29645 | -6/Lower Caves | Learned Extension trap positions 29645 | -6/Lower Caves | Hacking Suite fried by hacking feedback 30029 | -6/Lower Caves | Discovered new exit (range 12) 30063 | -6/Lower Caves | Identified exit to Lower Caves 30197 | -6/Lower Caves | Build established: Derelict-Skirmisher 30365 | -6/Lower Caves | Entered another Lower Caves area 30390 | -6/Lower Caves | Discovered exit to Factory (range 10) 30782 | -6/Lower Caves | Lost 3 parts (1p1u1w) 31040 | -6/Lower Caves | Build established: Skirmisher 31249 | -6/Lower Caves | Identified exit to Zion 31314 | -6/Lower Caves | Lost 3 parts (1u2w) 31511 | -6/Lower Caves | Build established: Mutant 32356 | -6/Lower Caves | Entered Zion 32357 | -6/Zion | Identified exit to Proximity Caves 32433 | -6/Zion | Build established: Skirmisher 32472 | -6/Zion | System corruption cleaned by Quarantine Array 32825 | -6/Zion | Learned 4 Factory zone layouts 33120 | -6/Zion | Gained Derelict followers 33228 | -6/Zion | Received a hallucinogenic algorithm 33762 | -6/Zion | Found Prototype Device 33762 | -6/Zion | Identified Bomb Factory No. 2 34345 | -6/Zion | Found CR-A16's Pointy Stick 35252 | -6/Zion | Entered Proximity Caves 35252 | -5/Proximity Caves | Accompanied by 5 allies 35321 | -5/Proximity Caves | Learned location of Armory (-3) 35514 | -5/Proximity Caves | Core integrity fell below 50% 35539 | -5/Proximity Caves | Lost 4 allies 35871 | -5/Proximity Caves | Spotted B-75 Beast 36009 | -5/Proximity Caves | Found DCF Scrap (13 items) 36316 | -5/Proximity Caves | Build established: Derelict-Skirmisher 36411 | -5/Proximity Caves | Lost 3 parts (1n1u1w) 36685 | -5/Proximity Caves | Build established: Skirmisher 36983 | -5/Proximity Caves | Core integrity fell below 20% 36988 | -5/Proximity Caves | Destroyed B-75 Beast 37003 | -5/Proximity Caves | Lost 4 parts (1n2u1w) 37079 | -5/Proximity Caves | Lost 3 allies 37542 | -5/Proximity Caves | Build established: Gunner 37624 | -5/Proximity Caves | Discovered exit to Factory (range 15) 38090 | -5/Proximity Caves | Build established: Skirmisher 38986 | -5/Proximity Caves | Learned Factory trap positions 41350 | -5/Proximity Caves | System corruption reached 10% 41503 | -5/Proximity Caves | Entered Factory 41503 | -5/Factory | Accompanied by 2 allies 41503 | -5/Factory | Evolved 2 slots: Power x1, Utility x1 41504 | -5/Factory | Identified exit to Factory 41505 | -5/Factory | Loaded intel: 94 trap records 41662 | -5/Factory | Build established: Scavenger-Skirmisher 41903 | -5/Factory | Garrison activated, responded to threat 42317 | -5/Factory | Build established: Scavenger-Assassin 42403 | -5/Factory | First assault squad dispatched 42522 | -5/Factory | Destroyed 7 combat bots 42565 | -5/Factory | Lost 9 parts (2p3n1u3w) 42633 | -5/Factory | Core integrity fell below 50% 42643 | -5/Factory | Destroyed 8 combat bots 42652 | -5/Factory | Lost 6 parts (1n3u2w) 42730 | -5/Factory | Incoming assault squad redirected 42866 | -5/Factory | Discovered new exit (range 14) 42881 | -5/Factory | Identified exit to Extension 42884 | -5/Factory | Entered Extension 42885 | -5/Extension | Loaded intel: 14 trap records 42958 | -5/Extension | Rescued A7 43177 | -5/Extension | Rescued a captive Derelict 43184 | -5/Extension | First assault squad dispatched 43208 | -5/Extension | Core integrity fell below 20% 43291 | -5/Extension | Rescued a captive Derelict 43292 | -5/Extension | Rescued a captive Derelict 43387 | -5/Extension | Rescued a captive Derelict 43388 | -5/Extension | Rescued a captive Derelict 43392 | -5/Extension | Spotted B-75 Beast 43397 | -5/Extension | Lost 4 allies 43399 | -5/Extension | Spotted B-75 Beast 43418 | -5/Extension | Allies destroyed B-75 Beast 43442 | -5/Extension | Allies destroyed B-75 Beast 43461 | -5/Extension | Lost 11 parts (2p4n3u2w) 43464 | -5/Extension | Lost 4 allies 43530 | -5/Extension | Discovered exit to Factory (range 3) 43543 | -5/Extension | Entered Factory 43543 | -4/Factory | Accompanied by 4 allies (A7) 43543 | -4/Factory | Evolved 2 slots: Propulsion x1, Utility x1 43544 | -4/Factory | Loaded intel: 99 trap records 43676 | -4/Factory | Build established: Scavenger-Mutant 44384 | -4/Factory | Build established: Scavenger-Skirmisher 45026 | -4/Factory | Cargo convoy interrupted 45335 | -4/Factory | Build established: Hacker-Skirmisher 45754 | -4/Factory | Lost 11 parts (2p4n3u2w) 45806 | -4/Factory | System corruption reached 10% 45893 | -4/Factory | Core integrity fell below 50% 45909 | -4/Factory | Crushed by falling debris 45913 | -4/Factory | Crushed by falling debris 45944 | -4/Factory | Lost 13 parts (1p6n4u2w) 46031 | -4/Factory | Discovered new exit (range 16) 46033 | -4/Factory | Core integrity fell below 20% 46033 | -4/Factory | Spotted B-86 Titan 46037 | -4/Factory | Destroyed by B-86 Titan with Matter Neutralizer Last Messages --------------- 45994_ U-05 Engineer works on Assembly Bed. 45996_ S-27 Virus destroyed. 45998_ T-07 Excavator destroyed. 46009_ 9QBVIADWI=Y5ZOG&8G=B 46009_ Acquired Nuclear Pulse Array. 46023_ K-01 Serf collects debris. 46023_ Penetrated by Slug. 46025_ System corrupted: Matter fused (-5). 46026_ R-10 Processor collects Lgt. Nuclear Core. 46028_ U-05 Engineer builds a Wall. 46029_ K-01 Serf collects debris. 46030_ Knocked back. 46031_ EXIT=FOUND 46031_ Lance destroyed. 46032_ Knocked back. 46034_ Slug penetrates Wall. 46034_ Slug penetrates Door. 46036_ K-01 Serf cleans the Manufacturing Mainframe. [Achievement: Punisher] [Achievement: Overachiever] Map ----- +----------------------------------------------------+ | ?????????????????????????????????????????????????? | | ?????????????????????????????????????????????????? | | ?????????????????????????????????????????????????? | | ?????????????????????????????????????????????????? | | ?????????????????????????????????????????????????? | | ?????????????????????????????????????????????????? | | ??????? ??? #?????????????????????????????????? | | ??????# ??? #?????????????????????????????????? | | ??????# """ #?????????????????????????????????? | | ??????# """ #?????????????????????????????????? | | ??????# #?????????????????????????????????? | | ??????# ]#?????????????????????????????????? | | ??????# #?????????????????????????????????? | | ??????# *!#?????????????????????????????????? | | ??????# !!#?????????????????????????????????? | | ??????# #?????????????????????????????????? | | ###???# #?????????????????????????????????? | | #???# #?????????????????????????????????? | | #???? #?????????????????????????????????? | | #####?? ???????????????????????????????????? | | # #####+####????????????????????? !??????????? | | # #??????????????#####BB ?????????? | | # ############+#; BB#???????????? | | # """" ###???????????? | | # """" Y < w ????????? | | # """ R @ H #?????????????? | | # """ #######;;;##### #?????????????? | | # """ ## #?????????????????????? | | # """" ## """" #?????????????????????? | | ### ## """" #?????????????????????? | | = "" ## """" #?????????????????????? | | [ "F"" ## """" #?????????????????????? | | """" #?? #?????????????????????? | | #? """" #?????????????????????? | | #? """" #?????????????????????? | | ########## ###??"""" =#?????????????????????? | | ?????????# #?????""" #?????????????????????? | | ?????????# #?????? #?????????????????????? | | ?????????# #?????? #?????????????????????? | | ???????### ###???? #?????????????????????? | | ???????# #???? #?????????????????????? | | ???????# #????? ??????????????????????? | | ???????# #####/#?####??????????????????????? | | ???????# #???????????????????????????? | | ???????# ##### #???????????????????????????? | | ???????# #?????????????????????????????????? | | ???????# #?????????????????????????????????? | | ???????## ##?????????????????????????????????? | | ######### #??????????????????????????????????? | | # #??????????????????????????????????? | +----------------------------------------------------+ Best States ------------- Heat Dissipation 74 Coolant Potential 80 Energy Generation 32 Energy Capacity 505 Matter Stores 300 Matter Capacity 300 Sight Range 20 Robot Scan Range 16 Terrain Scan Range 20 Terrain Scan Density 135 Jamming Range 14 Cloak Strength 2 Armor Coverage 525 Resistance: TH 25 Core Shielding 20 Propulsion Shielding 33 Weapon Shielding 33 Phase Shifting 10 Evasion (%) 62 Targeting Accuracy 6 Target Analysis 6 Recoil Reduction 4 Kinecelleration 30 Offensive Hacking 14 Defensive Hacking 21 Item Schematics ----------------- Combat Drone Bay | -7/Data Miner | Free Biomechanical Wings | -7/Data Miner | Free Lgt. Regenerative Plating | -7/Data Miner | Free Gravity Neutralizer | -7/Data Miner | Free Force Rifle | -7/Data Miner | Free Field Propulsion Drive | -7/Data Miner | Free Adv. Drone Bay | -7/Data Miner | Free Variable Charge Gun | -7/Data Miner | Free Imp. Fusion Compressor | -7/Data Miner | Free HERF Cannon | -7/Data Miner | Free Hvy. Plasma Cannon | -6/Zion | Archive Disruptor Cannon | -6/Zion | Archive Fission Core | -6/Zion | Archive Imp. Weapon Cycler | -6/Zion | Archive Point Defense System | -6/Zion | Archive Hvy. Machine Gun | -6/Zion | Archive Lgt. Antimatter Reactor | -6/Zion | Archive Imp. Remote Shield | -6/Zion | Archive Proton Cannon | -6/Zion | Archive Antigrav System | -6/Zion | Archive Enh. Gauss Cannon | -6/Zion | Archive Phase Cannon | -6/Zion | Archive Thermic Laser | -6/Zion | Archive Imp. Coolant Injector | -6/Zion | Archive Hyp. Gauss Cannon | -5/Extension | Hacked Robot Schematics ------------------ M-22 Extractor | -7/Data Miner | Free M-14 Sweeper | -7/Data Miner | Free B-60 Warrior | -7/Data Miner | Free I-47 Archangel | -7/Data Miner | Free B-48 Gladiator | -7/Data Miner | Free K-01 Serf | -6/Zion | Archive A-15 Conveyor | -6/Zion | Archive A-02 Transporter | -6/Zion | Archive Fabricated ------------ Nothing Alien Tech Used ----------------- Core Expander Achievements -------------- Overachiever Punisher Challenges ------------ None Game ------ Seed LightpackSwordRipper Manual? 0 Play Time 02:55:27 Cumulative 163.7 hours Start 2024.09.28 @ 07:20:42 End 2024.09.28 @ 19:16:23 Sessions 3 Manual Loads 0 Difficulty Rogue Special Mode None Game No. 209 Rogue 209 Adventurer 0 Explorer 0 Win Type - Total 1 Types 1/0/0/0/0/0/0/0/0 Lore% 52 Gallery% 62 Achievement% 50 Wizard Run 0 Options --------- Layout 0 ASCII 0 Keyboard 0 Movement Mouse Keybinds 1 Fullscreen 1 Font 18/Terminus Map View 76x50 Zoom Use 0% Tactical HUD 1 Map Filters NONE Filters NONE Steam 0 RUN: f7602c4b-e7ca-4ad2-b736-0735693adc3f